[Event "4NCL Div 1 2024-25"]
[Site "England"]
[Date "2025.02.16"]
[Round "6.5"]
[White "Grieve, Harry"]
[Black "Camacho Collados, Jose"]
[Result "1-0"]
[Annotator "ChessBase"]
[ECO "B45"]
[WhiteElo "2464"]
[BlackElo "2348"]
[PlyCount "99"]
[EventDate "2024.11.23"]
[EventType "team-tourn"]
[EventCountry "ENG"]
[SourceTitle "playchess.com"]
[Source "ChessBase"]
[SourceQuality "1"]
[TimeControl "40/6000+30:3000+30"]

1. e4 {[%emt 0:10:01]} c5 {[%emt 0:10:04]} 2. Nf3 {[%emt 0:00:03]} Nc6 {[%emt 0:00:13]} 3. d4 {[%emt 0:02:21]} cxd4 {[%emt 0:00:06]} 4. Nxd4 {[%emt 0:00:04]} Nf6 {[%emt 0:00:06]} 5. Nc3 {[%emt 0:00:03]} e6 {[%emt 0:00:05]} 6. Nxc6 {[%emt 0:00:04]} bxc6 {[%emt 0:00:03]} 7. e5 {[%emt 0:00:05]} Nd5 {[%emt 0:00:03]} 8. Ne4 {[%emt 0:00:04]} Bb7 {[%emt 0:00:25]} 9. c4 {[%emt 0:00:06]} Nb4 {[%emt 0:01:50]} 10. Bg5 {[%emt 0:00:05]} Qb8 {[%emt 0:09:09]} 11. Nd6+ {[%emt 0:00:08]} Bxd6 {[%emt 0:00:12]} 12. exd6 {[%emt 0:00:04]} c5 {[%emt 0:03:12]} 13. a3 {[%emt 0:00:05]} Nc6 {[%emt 0:02:59]} 14. Be3 {[%emt 0:00:05]} O-O {[%emt 0:08:27]} 15. Bxc5 {[%emt 0:02:03]} Rc8 {[%emt 0:03:49]} 16. b4 {[%emt 0:08:27]} a5 {[%emt 0:03:31]} 17. b5 {[%emt 0:13:09]} Ne5 {[%emt 0:09:11]} 18. Qd4 {[%emt 0:09:17]} Rxc5 {[%emt 0:04:05]} 19. Qxc5 {[%emt 0:00:06]} Bxg2 {[%emt 0:00:11]} 20. Qxe5 {[%emt 0:18:56]} Bxh1 {[%emt 0:00:22]} 21. c5 {[%emt 0:05:28]} Qb7 {[%emt 0:02:27]} 22. Rd1 {[%emt 0:04:29]} Rc8 {[%emt 0:06:56]} 23. Bc4 {[%emt 0:18:27]} a4 {[%emt 0:18:38]} 24. Kd2 {[%emt 0:12:01]} Qf3 {[%emt 0:12:07]} 25. Qe3 {[%emt 0:04:25]} Qg4 {[%emt 0:05:03]} 26. Rc1 {[%emt 0:01:13]} Be4 {[%emt 0:03:03]} 27. Kc3 {[%emt 0:00:43]} h6 {[%emt 0:02:12]} 28. Kb4 {[%emt 0:00:19]} Bd5 {[%emt 0:01:38]} 29. f4 {[%emt 0:00:18]} Bxc4 {[%emt 0:00:57]} 30. Rxc4 {[%emt 0:00:18]} Qg2 {[%emt 0:01:10]} 31. Qc3 {[%emt 0:01:26]} Rb8 {[%emt 0:02:54]} 32. c6 {[%emt 0:01:25]} Qd5 {[%emt 0:00:43]} 33. Rc5 {[%emt 0:00:24]} Qxd6 {[%emt 0:00:08]} 34. c7 {[%emt 0:00:27]} Rc8 {[%emt 0:00:53]} 35. Kxa4 {[%emt 0:00:50]} Qxf4+ {[%emt 0:00:27]} 36. Kb3 {[%emt 0:00:28]} d6 {[%emt 0:00:36]} 37. Rc6 {[%emt 0:00:26]} Qf1 {[%emt 0:00:32]} 38. a4 {[%emt 0:00:18]} Qb1+ {[%emt 0:00:30]} 39. Ka3 {[%emt 0:00:01]} d5 {[%emt 0:00:25]} 40. Rd6 {[%emt 0:01:11]} Kh7 {[%emt 0:00:34]} 41. Rd8 {[%emt 0:25:18]} d4 {[%emt 0:20:41]} 42. Rxd4 {[%emt 0:02:09]} Rxc7 {[%emt 0:00:55]} 43. Qd3+ {[%emt 0:01:47]} Qxd3+ {[%emt 0:00:07]} 44. Rxd3 {[%emt 0:00:02]} f5 {[%emt 0:06:39]} 45. b6 {[%emt 0:00:30]} Rb7 {[%emt 0:00:20]} 46. a5 {[%emt 0:00:08]} f4 {[%emt 0:00:48]} 47. Rb3 {[%emt 0:00:42]} Rb8 {[%emt 0:01:47]} 48. a6 {[%emt 0:01:46]} f3 {[%emt 0:01:01]} 49. b7 {[%emt 0:01:00]} f2 {[%emt 0:01:30]} 50. Rf3 {[%emt 0:00:13]} 1-0

[Event "4NCL Div 1 2024-25"]
[Site "England"]
[Date "2025.02.16"]
[Round "6.5"]
[White "Jackson, James P"]
[Black "Pert, Max"]
[Result "0-1"]
[Annotator "ChessBase"]
[ECO "C55"]
[WhiteElo "2373"]
[BlackElo "2076"]
[PlyCount "82"]
[EventDate "2024.11.23"]
[EventType "team-tourn"]
[EventCountry "ENG"]
[SourceTitle "playchess.com"]
[Source "ChessBase"]
[SourceQuality "1"]
[TimeControl "40/6000+30:3000+30"]

1. e4 {[%emt 0:10:17]} e5 {[%emt 0:10:23]} 2. Nf3 {[%emt 0:00:12]} Nc6 {[%emt 0:00:33]} 3. Bc4 {[%emt 0:00:53]} Nf6 {[%emt 0:00:50]} 4. d3 {[%emt 0:00:37]} h6 {[%emt 0:01:05]} 5. Nc3 {[%emt 0:00:36]} d6 {[%emt 0:03:09]} 6. a4 {[%emt 0:02:19]} g5 {[%emt 0:01:57]} 7. Be3 {[%emt 0:03:46]} Bg7 {[%emt 0:02:40]} 8. h4 {[%emt 0:09:16]} g4 {[%emt 0:06:02]} 9. Nh2 {[%emt 0:00:22]} Ne7 {[%emt 0:12:50]} 10. Nf1 {[%emt 0:21:56]} c6 {[%emt 0:13:44]} 11. Ng3 {[%emt 0:06:53]} O-O {[%emt 0:23:58]} 12. Ba2 {[%emt 0:02:57]} d5 {[%emt 0:04:24]} 13. Nce2 {[%emt 0:02:12]} Qd6 {[%emt 0:04:56]} 14. f4 {[%emt 0:18:39]} gxf3 {[%emt 0:13:17]} 15. gxf3 {[%emt 0:00:13]} Be6 {[%emt 0:00:49]} 16. Qd2 {[%emt 0:05:38]} Kh7 {[%emt 0:00:37]} 17. h5 {[%emt 0:00:31]} d4 {[%emt 0:02:05]} 18. Bf2 {[%emt 0:00:10]} Bxa2 {[%emt 0:00:30]} 19. Rxa2 {[%emt 0:00:07]} Nd7 {[%emt 0:00:20]} 20. c3 {[%emt 0:07:26]} c5 {[%emt 0:00:18]} 21. Nf5 {[%emt 0:06:04]} Nxf5 {[%emt 0:01:21]} 22. exf5 {[%emt 0:00:05]} Qd5 {[%emt 0:00:21]} 23. c4 {[%emt 0:00:04]} Qxf3 {[%emt 0:00:20]} 24. Ng3 {[%emt 0:00:21]} Nf6 {[%emt 0:00:50]} 25. Qe2 {[%emt 0:00:21]} Qf4 {[%emt 0:00:46]} 26. Ra3 {[%emt 0:02:10]} Rfe8 {[%emt 0:01:18]} 27. Ne4 {[%emt 0:00:47]} Nxe4 {[%emt 0:00:41]} 28. dxe4 {[%emt 0:00:06]} Qc1+ {[%emt 0:00:08]} 29. Qd1 {[%emt 0:00:07]} Qxc4 {[%emt 0:00:15]} 30. Bh4 {[%emt 0:00:56]} Qb4+ {[%emt 0:00:54]} 31. Kf1 {[%emt 0:00:42]} Qb6 {[%emt 0:01:16]} 32. Qf3 {[%emt 0:00:43]} Bf6 {[%emt 0:00:23]} 33. Rb3 {[%emt 0:00:24]} Qa6+ {[%emt 0:00:04]} 34. Rb5 {[%emt 0:00:15]} Bxh4 {[%emt 0:00:57]} 35. Rxh4 {[%emt 0:00:05]} Qxa4 {[%emt 0:00:12]} 36. Rxc5 {[%emt 0:01:30]} Qa1+ {[%emt 0:00:17]} 37. Kg2 {[%emt 0:00:09]} Rg8+ {[%emt 0:01:16]} 38. Kh3 {[%emt 0:00:06]} Rg1 {[%emt 0:00:20]} 39. Rc2 {[%emt 0:00:28]} Rag8 {[%emt 0:00:24]} 40. Kh2 {[%emt 0:02:37]} Qe1 {[%emt 0:00:46]} 41. Rh3 {[%emt 0:51:04]} d3 {[%emt 0:53:44]} 0-1

[Event "4NCL Div 1 2024-25"]
[Site "England"]
[Date "2025.02.16"]
[Round "6.6"]
[White "Eggleston, David J"]
[Black "Houska, Jovanka"]
[Result "1/2-1/2"]
[Annotator "ChessBase"]
[ECO "B12"]
[WhiteElo "2339"]
[BlackElo "2344"]
[PlyCount "38"]
[EventDate "2024.11.23"]
[EventType "team-tourn"]
[EventCountry "ENG"]
[SourceTitle "playchess.com"]
[Source "ChessBase"]
[SourceQuality "1"]
[TimeControl "40/6000+30:3000+30"]

1. e4 {[%emt 0:10:02]} c6 {[%emt 0:10:05]} 2. d4 {[%emt 0:00:04]} d5 {[%emt 0:00:05]} 3. e5 {[%emt 0:00:04]} Bf5 {[%emt 0:00:59]} 4. h4 {[%emt 0:00:09]} a6 {[%emt 0:00:29]} 5. g4 {[%emt 0:03:39]} Bd7 {[%emt 0:00:29]} 6. c3 {[%emt 0:07:09]} e6 {[%emt 0:00:37]} 7. h5 {[%emt 0:01:30]} c5 {[%emt 0:00:26]} 8. Nf3 {[%emt 0:02:03]} Nc6 {[%emt 0:04:15]} 9. Na3 {[%emt 0:04:32]} cxd4 {[%emt 0:04:39]} 10. cxd4 {[%emt 0:00:10]} Bb4+ {[%emt 0:18:58]} 11. Bd2 {[%emt 0:00:27]} Qb6 {[%emt 0:06:42]} 12. Bxb4 {[%emt 0:11:24]} Qxb4+ {[%emt 0:04:09]} 13. Qd2 {[%emt 0:02:16]} f6 {[%emt 0:00:38]} 14. Qxb4 {[%emt 0:05:18]} Nxb4 {[%emt 0:00:05]} 15. h6 {[%emt 0:14:57]} gxh6 {[%emt 0:10:10]} 16. exf6 {[%emt 0:00:25]} Nxf6 {[%emt 0:02:06]} 17. Ne5 {[%emt 0:00:14]} Nc6 {[%emt 0:09:45]} 18. Nxc6 {[%emt 0:00:33]} Bxc6 {[%emt 0:01:19]} 19. f3 {[%emt 0:45:04]} O-O {[%emt 0:00:33]} 1/2-1/2

[Event "4NCL Div 1 2024-25"]
[Site "England"]
[Date "2025.02.16"]
[Round "6.6"]
[White "Li, Harry"]
[Black "Cyborowski, Lukasz"]
[Result "1/2-1/2"]
[Annotator "ChessBase"]
[ECO "B38"]
[WhiteElo "2203"]
[BlackElo "2454"]
[PlyCount "61"]
[EventDate "2024.11.23"]
[EventType "team-tourn"]
[EventCountry "ENG"]
[SourceTitle "playchess.com"]
[Source "ChessBase"]
[SourceQuality "1"]
[TimeControl "40/6000+30:3000+30"]

1. e4 {[%emt 0:10:03]} c5 {[%emt 0:10:19]} 2. Nf3 {[%emt 0:00:03]} Nc6 {[%emt 0:01:22]} 3. d4 {[%emt 0:00:04]} cxd4 {[%emt 0:00:05]} 4. Nxd4 {[%emt 0:00:02]} g6 {[%emt 0:01:13]} 5. c4 {[%emt 0:00:27]} Nf6 {[%emt 0:01:42]} 6. Nc3 {[%emt 0:00:04]} d6 {[%emt 0:01:03]} 7. Be2 {[%emt 0:00:09]} Nxd4 {[%emt 0:00:21]} 8. Qxd4 {[%emt 0:00:04]} Bg7 {[%emt 0:00:05]} 9. O-O {[%emt 0:00:04]} O-O {[%emt 0:00:06]} 10. Qd3 {[%emt 0:00:02]} a5 {[%emt 0:02:13]} 11. Be3 {[%emt 0:00:15]} Bd7 {[%emt 0:14:07]} 12. b3 {[%emt 0:00:18]} Bc6 {[%emt 0:00:56]} 13. f3 {[%emt 0:00:09]} Nd7 {[%emt 0:00:41]} 14. Qd2 {[%emt 0:01:04]} Nc5 {[%emt 0:00:54]} 15. Rac1 {[%emt 0:02:21]} Be5 {[%emt 0:11:28]} 16. Rc2 {[%emt 0:09:51]} e6 {[%emt 0:02:44]} 17. Rd1 {[%emt 0:08:34]} Qh4 {[%emt 0:05:35]} 18. g3 {[%emt 0:00:09]} Qe7 {[%emt 0:01:24]} 19. Bf1 {[%emt 0:03:52]} Rad8 {[%emt 0:19:56]} 20. Bg2 {[%emt 0:00:27]} Rfe8 {[%emt 0:00:53]} 21. Ne2 {[%emt 0:10:18]} b6 {[%emt 0:01:07]} 22. Nd4 {[%emt 0:04:59]} Bb7 {[%emt 0:00:55]} 23. b4 {[%emt 0:14:40]} axb4 {[%emt 0:07:39]} 24. Qxb4 {[%emt 0:00:04]} Ra8 {[%emt 0:00:43]} 25. Nb5 {[%emt 0:09:27]} Red8 {[%emt 0:14:18]} 26. Rcd2 {[%emt 0:00:40]} d5 {[%emt 0:02:17]} 27. f4 {[%emt 0:01:30]} Bg7 {[%emt 0:01:56]} 28. e5 {[%emt 0:02:07]} dxc4 {[%emt 0:03:06]} 29. Bxb7 {[%emt 0:14:42]} Rxd2 {[%emt 0:00:06]} 30. Rxd2 {[%emt 0:00:05]} Qxb7 {[%emt 0:00:07]} 31. Qxc4 {[%emt 0:03:21]} 1/2-1/2

[Event "4NCL Div 1 2024-25"]
[Site "England"]
[Date "2025.02.16"]
[Round "6.7"]
[White "Zhou, Yang-Fan"]
[Black "Arkell, Keith C"]
[Result "1-0"]
[Annotator "ChessBase"]
[ECO "C02"]
[WhiteElo "2418"]
[BlackElo "2359"]
[PlyCount "95"]
[EventDate "2024.11.23"]
[EventType "team-tourn"]
[EventCountry "ENG"]
[SourceTitle "playchess.com"]
[Source "ChessBase"]
[SourceQuality "1"]
[TimeControl "40/6000+30:3000+30"]

1. e4 {[%emt 0:12:00]} e6 {[%emt 0:10:07]} 2. d4 {[%emt 0:00:17]} d5 {[%emt 0:00:05]} 3. e5 {[%emt 0:01:11]} c5 {[%emt 0:00:06]} 4. c3 {[%emt 0:00:04]} Nc6 {[%emt 0:00:04]} 5. Nf3 {[%emt 0:00:21]} Nge7 {[%emt 0:00:06]} 6. Na3 {[%emt 0:02:12]} cxd4 {[%emt 0:00:13]} 7. cxd4 {[%emt 0:00:07]} Nf5 {[%emt 0:00:21]} 8. Nc2 {[%emt 0:00:13]} Bd7 {[%emt 0:01:44]} 9. Bd3 {[%emt 0:03:49]} Nb4 {[%emt 0:00:59]} 10. Nxb4 {[%emt 0:11:48]} Bxb4+ {[%emt 0:00:05]} 11. Bd2 {[%emt 0:00:05]} Qa5 {[%emt 0:00:25]} 12. Rc1 {[%emt 0:15:49]} O-O {[%emt 0:09:23]} 13. a3 {[%emt 0:07:49]} Bxd2+ {[%emt 0:00:06]} 14. Qxd2 {[%emt 0:00:04]} Qxd2+ {[%emt 0:00:35]} 15. Kxd2 {[%emt 0:00:06]} Rfc8 {[%emt 0:01:45]} 16. Bxf5 {[%emt 0:01:27]} exf5 {[%emt 0:00:05]} 17. Rc5 {[%emt 0:01:04]} Be6 {[%emt 0:04:36]} 18. Rhc1 {[%emt 0:00:55]} h6 {[%emt 0:00:12]} 19. Rc7 {[%emt 0:04:06]} Rab8 {[%emt 0:00:45]} 20. Ne1 {[%emt 0:02:54]} g5 {[%emt 0:16:02]} 21. f4 {[%emt 0:03:04]} Kh7 {[%emt 0:07:02]} 22. R1c5 {[%emt 0:09:53]} b6 {[%emt 0:07:33]} 23. R5c6 {[%emt 0:00:58]} Kg6 {[%emt 0:01:55]} 24. Nd3 {[%emt 0:07:56]} Kh5 {[%emt 0:02:10]} 25. b4 {[%emt 0:02:35]} Kg4 {[%emt 0:11:23]} 26. b5 {[%emt 0:02:19]} Rxc7 {[%emt 0:02:04]} 27. Rxc7 {[%emt 0:00:02]} Ra8 {[%emt 0:00:26]} 28. a4 {[%emt 0:10:24]} gxf4 {[%emt 0:07:47]} 29. Ke2 {[%emt 0:03:56]} Rc8 {[%emt 0:21:26]} 30. Rxc8 {[%emt 0:02:48]} Bxc8 {[%emt 0:00:01]} 31. Nb4 {[%emt 0:01:04]} Bb7 {[%emt 0:01:56]} 32. Nc6 {[%emt 0:00:53]} a6 {[%emt 0:03:16]} 33. Nd8 {[%emt 0:00:36]} Bc8 {[%emt 0:00:04]} 34. Nxf7 {[%emt 0:01:58]} axb5 {[%emt 0:00:14]} 35. axb5 {[%emt 0:00:01]} Bd7 {[%emt 0:00:10]} 36. Kf2 {[%emt 0:02:01]} f3 {[%emt 0:02:27]} 37. gxf3+ {[%emt 0:00:50]} Kh5 {[%emt 0:00:10]} 38. Kg3 {[%emt 0:01:00]} Kg6 {[%emt 0:00:48]} 39. Nd6 {[%emt 0:00:12]} Kg5 {[%emt 0:00:15]} 40. Nf7+ {[%emt 0:00:34]} Kg6 {[%emt 0:00:09]} 41. Nd6 {[%emt 0:50:03]} Kg5 {[%emt 0:50:20]} 42. h4+ {[%emt 0:01:26]} Kg6 {[%emt 0:00:00]} 43. Kf4 {[%emt 0:00:00]} h5 {[%emt 0:00:00]} 44. e6 {[%emt 0:00:00]} Bxe6 {[%emt 0:00:00]} 45. Ke5 {[%emt 0:00:00]} Bd7 {[%emt 0:00:00]} 46. f4 {[%emt 0:00:00]} Kg7 {[%emt 0:00:00]} 47. Nxf5+ {[%emt 0:00:00]} Kf7 {[%emt 0:00:00]} 48. Nd6+ {[%emt 0:00:00]} 1-0

[Event "4NCL Div 1 2024-25"]
[Site "England"]
[Date "2025.02.16"]
[Round "6.7"]
[White "Galyas, Miklos"]
[Black "Carroll, Thomas"]
[Result "1-0"]
[Annotator "ChessBase"]
[ECO "D11"]
[WhiteElo "2374"]
[BlackElo "2126"]
[PlyCount "105"]
[EventDate "2024.11.23"]
[EventType "team-tourn"]
[EventCountry "ENG"]
[SourceTitle "playchess.com"]
[Source "ChessBase"]
[SourceQuality "1"]
[TimeControl "40/6000+30:3000+30"]

1. Nf3 {[%emt 0:10:02]} d5 {[%emt 0:10:16]} 2. g3 {[%emt 0:00:07]} Nf6 {[%emt 0:00:31]} 3. Bg2 {[%emt 0:00:08]} c6 {[%emt 0:00:07]} 4. O-O {[%emt 0:00:10]} Bg4 {[%emt 0:00:42]} 5. d4 {[%emt 0:00:11]} Nbd7 {[%emt 0:01:45]} 6. c4 {[%emt 0:00:11]} e6 {[%emt 0:01:31]} 7. h3 {[%emt 0:00:11]} Bh5 {[%emt 0:02:58]} 8. cxd5 {[%emt 0:00:51]} exd5 {[%emt 0:02:21]} 9. Qb3 {[%emt 0:00:17]} Qc8 {[%emt 0:10:32]} 10. Bf4 {[%emt 0:20:29]} Be7 {[%emt 0:01:58]} 11. Nc3 {[%emt 0:00:08]} O-O {[%emt 0:02:30]} 12. Rac1 {[%emt 0:00:05]} Bxf3 {[%emt 0:08:29]} 13. Bxf3 {[%emt 0:01:25]} Nb6 {[%emt 0:00:36]} 14. Bg2 {[%emt 0:08:33]} Qd7 {[%emt 0:03:13]} 15. Rcd1 {[%emt 0:02:44]} Rfe8 {[%emt 0:03:38]} 16. Be5 {[%emt 0:06:01]} Qf5 {[%emt 0:07:16]} 17. Rfe1 {[%emt 0:03:21]} Bf8 {[%emt 0:05:11]} 18. a4 {[%emt 0:03:41]} Nfd7 {[%emt 0:05:25]} 19. Bf4 {[%emt 0:01:49]} Qe6 {[%emt 0:03:27]} 20. a5 {[%emt 0:03:29]} Nc4 {[%emt 0:00:31]} 21. Qxb7 {[%emt 0:08:58]} Nxa5 {[%emt 0:03:31]} 22. Qa6 {[%emt 0:00:07]} Nc4 {[%emt 0:00:58]} 23. e4 {[%emt 0:00:55]} Rad8 {[%emt 0:10:01]} 24. exd5 {[%emt 0:01:58]} Qxe1+ {[%emt 0:00:10]} 25. Rxe1 {[%emt 0:00:05]} Rxe1+ {[%emt 0:00:04]} 26. Kh2 {[%emt 0:37:34]} cxd5 {[%emt 0:00:30]} 27. Nxd5 {[%emt 0:00:00]} Ncb6 {[%emt 0:03:41]} 28. Qxa7 {[%emt 0:00:00]} Nc8 {[%emt 0:07:57]} 29. Qa5 {[%emt 0:00:00]} Rde8 {[%emt 0:00:48]} 30. Qb5 {[%emt 0:00:00]} Nf6 {[%emt 0:01:14]} 31. Nxf6+ {[%emt 0:00:00]} gxf6 {[%emt 0:00:05]} 32. Qf5 {[%emt 0:00:00]} Ne7 {[%emt 0:00:33]} 33. Qg4+ {[%emt 0:00:00]} Bg7 {[%emt 0:03:31]} 34. Qd7 {[%emt 0:00:00]} Ng6 {[%emt 0:01:39]} 35. Be3 {[%emt 0:00:00]} Re7 {[%emt 0:03:10]} 36. Qd8+ {[%emt 0:00:00]} Bf8 {[%emt 0:00:07]} 37. h4 {[%emt 0:00:00]} h5 {[%emt 0:00:38]} 38. Qa5 {[%emt 0:06:00]} R1xe3 {[%emt 0:04:34]} 39. fxe3 {[%emt 0:00:00]} Rxe3 {[%emt 0:00:06]} 40. Qd5 {[%emt 0:00:00]} Kg7 {[%emt 0:03:34]} 41. Bf3 {[%emt 0:43:18]} Ne7 {[%emt 0:22:33]} 42. Qxh5 {[%emt 0:00:00]} Rb3 {[%emt 0:29:09]} 43. Qg4+ {[%emt 0:00:00]} Kh8 {[%emt 0:00:00]} 44. Be4 {[%emt 0:00:00]} Rxb2+ {[%emt 0:00:00]} 45. Kh3 {[%emt 0:00:00]} f5 {[%emt 0:00:00]} 46. Bxf5 {[%emt 0:00:00]} Nxf5 {[%emt 0:00:00]} 47. Qxf5 {[%emt 0:00:00]} Kg8 {[%emt 0:00:00]} 48. d5 {[%emt 0:00:00]} Rb6 {[%emt 0:00:00]} 49. h5 {[%emt 0:00:00]} Bh6 {[%emt 0:00:00]} 50. g4 {[%emt 0:00:00]} Bf8 {[%emt 0:00:00]} 51. g5 {[%emt 0:00:00]} Kg7 {[%emt 0:00:00]} 52. h6+ {[%emt 0:00:00]} Kg8 {[%emt 0:00:00]} 53. Qc8 {[%emt 0:00:00]} 1-0

[Event "4NCL Div 1 2024-25"]
[Site "England"]
[Date "2025.02.16"]
[Round "6.8"]
[White "Arnott, Jonathan W"]
[Black "Terbe, Julianna"]
[Result "1-0"]
[Annotator "ChessBase"]
[ECO "B30"]
[WhiteElo "2081"]
[BlackElo "2225"]
[PlyCount "97"]
[EventDate "2024.11.23"]
[EventType "team-tourn"]
[EventCountry "ENG"]
[SourceTitle "playchess.com"]
[Source "ChessBase"]
[SourceQuality "1"]
[TimeControl "40/6000+30:3000+30"]

1. e4 {[%emt 0:10:18]} c5 {[%emt 0:10:07]} 2. Nf3 {[%emt 0:00:35]} Nc6 {[%emt 0:00:10]} 3. Nc3 {[%emt 0:00:16]} e5 {[%emt 0:01:58]} 4. Bc4 {[%emt 0:00:43]} d6 {[%emt 0:00:36]} 5. d3 {[%emt 0:00:06]} Be7 {[%emt 0:00:03]} 6. Nd2 {[%emt 0:00:12]} Nf6 {[%emt 0:00:08]} 7. Nf1 {[%emt 0:01:37]} Bg4 {[%emt 0:00:06]} 8. Qd2 {[%emt 0:00:42]} a6 {[%emt 0:01:00]} 9. Ne3 {[%emt 0:03:23]} Be6 {[%emt 0:00:29]} 10. a4 {[%emt 0:06:34]} Nb4 {[%emt 0:07:33]} 11. Ncd5 {[%emt 0:09:28]} Nbxd5 {[%emt 0:01:13]} 12. Bxd5 {[%emt 0:02:36]} Nxd5 {[%emt 0:02:43]} 13. Nxd5 {[%emt 0:00:56]} Bxd5 {[%emt 0:12:34]} 14. exd5 {[%emt 0:00:28]} b5 {[%emt 0:00:12]} 15. O-O {[%emt 1:10:06]} O-O {[%emt 0:00:07]} 16. b3 {[%emt 0:00:00]} b4 {[%emt 0:09:36]} 17. Qe2 {[%emt 0:00:00]} Bg5 {[%emt 0:12:02]} 18. Qg4 {[%emt 0:00:00]} Bxc1 {[%emt 0:01:19]} 19. Raxc1 {[%emt 0:00:00]} f5 {[%emt 0:00:48]} 20. Qc4 {[%emt 0:00:00]} g5 {[%emt 0:04:38]} 21. Rce1 {[%emt 0:00:00]} Ra7 {[%emt 0:05:41]} 22. Re2 {[%emt 0:03:30]} a5 {[%emt 0:38:27]} 23. f3 {[%emt 0:00:30]} Rg7 {[%emt 0:00:30]} 24. g3 {[%emt 0:00:30]} h5 {[%emt 0:00:30]} 25. Rff2 {[%emt 0:00:00]} Rf6 {[%emt 0:00:00]} 26. Kf1 {[%emt 0:00:00]} f4 {[%emt 0:00:00]} 27. gxf4 {[%emt 0:00:00]} Rxf4 {[%emt 0:00:00]} 28. Re4 {[%emt 0:00:00]} Rgf7 {[%emt 0:00:00]} 29. Rxf4 {[%emt 0:00:00]} Rxf4 {[%emt 0:00:00]} 30. Qa6 {[%emt 0:00:00]} Kg7 {[%emt 0:00:00]} 31. Ke2 {[%emt 0:00:00]} Kg6 {[%emt 0:00:00]} 32. Qc6 {[%emt 0:00:00]} Qf8 {[%emt 0:00:00]} 33. h3 {[%emt 0:00:00]} Qd8 {[%emt 0:00:00]} 34. Rf1 {[%emt 0:00:00]} Kh6 {[%emt 0:00:00]} 35. Qb7 {[%emt 0:00:00]} Qg8 {[%emt 0:00:00]} 36. Qc6 {[%emt 0:00:00]} Rf6 {[%emt 0:00:00]} 37. Qc7 {[%emt 0:00:00]} Qxd5 {[%emt 0:00:33]} 38. Qxa5 {[%emt 0:00:00]} g4 {[%emt 0:04:13]} 39. hxg4 {[%emt 0:00:00]} hxg4 {[%emt 0:00:02]} 40. Qd8 {[%emt 0:00:00]} gxf3+ {[%emt 0:02:15]} 41. Kd2 {[%emt 0:43:06]} Rf4 {[%emt 0:38:31]} 42. Qh8+ {[%emt 0:00:00]} Kg5 {[%emt 0:04:54]} 43. Rg1+ {[%emt 0:00:00]} Kf5 {[%emt 0:00:04]} 44. Qh7+ {[%emt 0:00:00]} Ke6 {[%emt 0:00:52]} 45. Qg8+ {[%emt 0:00:00]} Rf7 {[%emt 0:00:05]} 46. Rg7 {[%emt 0:00:00]} Ke7 {[%emt 0:00:45]} 47. Rxf7+ {[%emt 0:00:00]} Qxf7 {[%emt 0:00:03]} 48. Qxf7+ {[%emt 0:00:00]} Kxf7 {[%emt 0:00:05]} 49. a5 {[%emt 0:00:00]} 1-0

[Event "4NCL Div 1 2024-25"]
[Site "England"]
[Date "2025.02.16"]
[Round "6.8"]
[White "Pert, Nina"]
[Black "Haydon, David L"]
[Result "0-1"]
[Annotator "ChessBase"]
[ECO "C54"]
[WhiteElo "1984"]
[BlackElo "2294"]
[PlyCount "76"]
[EventDate "2024.11.23"]
[EventType "team-tourn"]
[EventCountry "ENG"]
[SourceTitle "playchess.com"]
[Source "ChessBase"]
[SourceQuality "1"]
[TimeControl "40/6000+30:3000+30"]

1. e4 {[%emt 0:10:03]} e5 {[%emt 0:11:51]} 2. Nf3 {[%emt 0:00:19]} Nc6 {[%emt 0:00:13]} 3. Bc4 {[%emt 0:00:53]} Bc5 {[%emt 0:00:55]} 4. c3 {[%emt 0:02:29]} Nf6 {[%emt 0:00:12]} 5. d4 {[%emt 0:01:50]} exd4 {[%emt 0:00:19]} 6. cxd4 {[%emt 0:00:59]} Bb4+ {[%emt 0:00:11]} 7. Nbd2 {[%emt 0:00:44]} Bxd2+ {[%emt 0:01:32]} 8. Bxd2 {[%emt 0:03:12]} Nxe4 {[%emt 0:01:14]} 9. d5 {[%emt 0:00:17]} Ne7 {[%emt 0:00:57]} 10. Qe2 {[%emt 0:07:30]} Nxd2 {[%emt 0:01:47]} 11. Qxd2 {[%emt 0:00:19]} d6 {[%emt 0:01:01]} 12. O-O-O {[%emt 0:00:39]} O-O {[%emt 0:01:38]} 13. h4 {[%emt 0:01:09]} Ng6 {[%emt 0:17:16]} 14. Rde1 {[%emt 0:18:27]} Qf6 {[%emt 0:01:00]} 15. h5 {[%emt 0:09:55]} Ne5 {[%emt 0:04:11]} 16. Nxe5 {[%emt 0:00:50]} dxe5 {[%emt 0:00:02]} 17. h6 {[%emt 0:02:09]} g6 {[%emt 0:00:17]} 18. Qe3 {[%emt 0:01:07]} Re8 {[%emt 0:00:19]} 19. Re2 {[%emt 0:09:40]} Bd7 {[%emt 0:04:35]} 20. g3 {[%emt 0:02:29]} c6 {[%emt 0:08:41]} 21. Kb1 {[%emt 0:03:46]} Bg4 {[%emt 0:04:45]} 22. Rd2 {[%emt 0:01:34]} Bf3 {[%emt 0:01:26]} 23. Re1 {[%emt 0:03:25]} Rad8 {[%emt 0:04:55]} 24. d6 {[%emt 0:02:17]} a6 {[%emt 0:01:52]} 25. Qc3 {[%emt 0:01:54]} g5 {[%emt 0:03:56]} 26. Qe3 {[%emt 0:08:24]} Bh5 {[%emt 0:03:25]} 27. f4 {[%emt 0:01:37]} Bg6+ {[%emt 0:00:39]} 28. Kc1 {[%emt 0:02:03]} Qf5 {[%emt 0:08:33]} 29. Bd3 {[%emt 0:01:43]} gxf4 {[%emt 0:00:53]} 30. gxf4 {[%emt 0:03:09]} Qxf4 {[%emt 0:04:40]} 31. d7 {[%emt 0:02:06]} Re6 {[%emt 0:00:55]} 32. Bxg6 {[%emt 0:04:22]} hxg6 {[%emt 0:00:52]} 33. h7+ {[%emt 0:01:22]} Kxh7 {[%emt 0:00:10]} 34. Rh1+ {[%emt 0:00:27]} Kg7 {[%emt 0:00:02]} 35. Qh3 {[%emt 0:00:27]} Rd6 {[%emt 0:00:20]} 36. Qh7+ {[%emt 0:02:07]} Kf6 {[%emt 0:00:03]} 37. Rhh2 {[%emt 0:00:11]} Rxd2 {[%emt 0:00:35]} 38. Rxd2 {[%emt 0:00:07]} Rxd7 {[%emt 0:00:07]} 0-1